bitfinex/quotes_SOLUSD_20240712
["timestamp","ask_amount","ask_price","bid_price","bid_amount"]
[1720759001903,7.3354,136.33,136.29,7.3372]
[1720759002900,7.3354,136.33,136.28,7.3376]
[1720759003502,7.3356,136.32,136.28,7.3376]
[1720759004404,7.3348,136.34,136.29,8.80114501]
[1720759004619,7.3348,136.34,136.3,7.3366]
[1720759005394,7.3351,136.33,136.29,7.3371]
[1720759005817,7.3351,136.33,136.28,7.3376]
[1720759006001,7.3351,136.33,136.29,1.46351536]
[1720759006210,7.3351,136.33,136.29,8.80071536]
[1720759006408,7.3351,136.33,136.3,1.46340798]
[1720759007116,7.3348,136.34,136.3,8.79990798]
[1720759007817,7.67354966,136.35,136.26,1.46340798]
[1720759008017,15.00784966,136.35,136.3,7.3363]
[1720759008222,7.3343,136.35,136.31,8.79913384]
[1720759008410,7.3343,136.35,136.31,7.3361]
[1720759008716,7.333,136.37,136.33,7.3347]
[1720759009830,7.333,136.37,136.32,8.79799722]
[1720759010202,7.333,136.37,136.33,7.3351]
[1720759010813,7.3335,136.36,136.32,8.79789722]
[1720759011425,7.3335,136.36,136.31,15.6377]
[1720759011426,7.3328,136.38,136.33,8.79709017]
[1720759011621,0.8457011,136.39,136.31,15.6377]
[1720759011827,7.3338,136.36,136.31,22.9734]
[1720759012028,7.3331,136.37,136.32,7.3355]
[1720759012201,7.3331,136.37,136.33,7.3351]
[1720759014531,7.3335,136.36,136.32,7.3355]
[1720759015024,7.3335,136.36,136.31,7.336]
[1720759015435,7.3335,136.36,136.32,7.3356]
[1720759015606,0.8457011,136.39,136.32,7.3356]
[1720759015811,7.3332,136.37,136.32,7.3356]
[1720759016912,7.3332,136.37,136.33,7.3349]
[1720759017613,0.8457011,136.39,136.3,6.5579]
[1720759017810,8.1779011,136.39,136.35,7.334]
[1720759018215,7.3324,136.38,136.34,7.3344]
[1720759019322,7.3337,136.36,136.32,7.3354]
[1720759019630,7.3341,136.35,136.31,7.3357]
[1720759019816,7.3336,136.36,136.32,7.3356]
[1720759020216,70.5459011,136.39,136.31,7.336]
[1720759020217,7.3341,136.35,136.31,7.336]
[1720759021217,7.3337,136.36,136.31,7.336]
[1720759021419,29.4832,136.37,136.28,15.1111]
[1720759021617,22.15,136.37,136.28,15.1111]
[1720759022116,7.334,136.35,136.31,7.3359]
[1720759022314,22.15,136.35,136.27,6.4242]
[1720759022519,22.15,136.34,136.24,45.0324]
[1720759022832,7.3344,136.35,136.3,7.3363]
[1720759023034,7.3346,136.34,136.24,15.8124]
[1720759023240,7.3346,136.34,136.3,7.3364]
[1720759023529,7.3358,136.32,136.28,7.3377]
[1720759023730,7.3363,136.31,136.27,7.338]
[1720759023935,40.4869,136.34,136.25,0.67525301]
[1720759024233,22.15,136.31,136.23,6.4139]
[1720759024529,7.338,136.28,136.23,7.3403]
[1720759024753,7.3385,136.27,136.23,7.3403]
[1720759024913,22.15,136.28,136.21,7.3412]
[1720759024914,7.3394,136.25,136.21,7.3412]
[1720759026024,51.37,136.27,136.22,7.341]
[1720759026335,7.3389,136.26,136.22,7.341]
[1720759026532,7.3396,136.25,136.2,7.3416]
[1720759027110,7.3396,136.25,136.21,7.3415]
[1720759028036,36.5588,136.27,136.14,258.50965355]
[1720759028343,66.6363,136.3,136.17,29.22]
[1720759028635,7.3377,136.29,136.18,66.40185021]
[1720759028838,21.6363,136.3,136.18,66.40185021]
[1720759029030,22.15,136.29,136.18,66.40185021]
[1720759029228,7.338,136.28,136.18,66.40185021]
[1720759030837,22.97632279,136.3,136.19,29.22]
[1720759031026,15.2998,136.3,136.21,21.7423]
[1720759031332,7.3364,136.31,136.22,46.4015705]
[1720759031726,36.03184771,136.33,136.22,46.4015705]
[1720759031727,13.88184771,136.33,136.22,46.4015705]
[1720759032024,15.01034771,136.33,136.23,29.22]
[1720759032217,15.01034771,136.33,136.24,45.0]
[1720759032547,7.3357,136.32,136.25,1.40126189]
[1720759032722,7.3362,136.31,136.25,1.40126189]
[1720759033539,7.3358,136.32,136.25,1.40126189]
[1720759033832,7.3358,136.32,136.24,45.0]
[1720759034410,15.01014771,136.33,136.24,45.0]
[1720759034615,7.67484771,136.33,136.24,45.0]
[1720759035240,7.3357,136.32,136.24,45.0]
[1720759035538,53.7613,136.36,136.24,45.0]
[1720759035539,4.80143902,136.39,136.25,1.46657757]
[1720759035839,29.22,136.36,136.25,1.46657757]
[1720759036044,65.0,136.35,136.25,1.46657757]
[1720759036350,20.0,136.35,136.28,25.6819]
[1720759036653,20.0,136.35,136.28,18.3443]
[1720759036654,7.3362,136.32,136.28,18.3443]
[1720759036844,20.0,136.35,136.28,18.3443]
[1720759037461,20.0,136.35,136.28,40.2836]
[1720759037661,7.3354,136.33,136.29,7.3372]
[1720759038022,29.22,136.37,136.3,18.3416]
[1720759038253,7.3346,136.34,136.3,25.6778]
[1720759039137,7.3351,136.33,136.3,18.3416]
[1720759039528,7.336,136.32,136.28,29.2769]
[1720759039735,7.3363,136.31,136.27,25.683]
[1720759040444,47.5554,136.35,136.28,7.3375]
[1720759040828,47.5554,136.35,136.26,7.3388]
[1720759041034,16.5917,136.32,136.24,18.3487]
[1720759041238,7.3384,136.27,136.24,18.3487]
[1720759041751,47.5609,136.31,136.24,18.3487]
[1720759042741,7.3373,136.29,136.26,18.3463]
[1720759043029,7.3368,136.3,136.26,25.6851]
[1720759043838,22.7951,136.32,136.26,18.3463]
[1720759044049,20.0,136.31,136.24,1.46759329]
[1720759044246,20.0,136.31,136.23,18.35]
[1720759044445,7.3383,136.27,136.23,25.6902]
[1720759044643,7.338,136.28,136.24,7.3396]
[1720759045151,7.3373,136.29,136.25,7.3393]
[1720759046051,49.22,136.31,136.23,18.35]
[1720759046264,45.0,136.3,136.23,18.35]
[1720759046953,7.3394,136.25,136.21,7.3413]
[1720759047268,92.5621,136.3,136.22,18.3524]
[1720759047554,20.0,136.31,136.24,18.3498]
[1720759047747,7.3367,136.3,136.26,7.3386]
[1720759048660,20.0,136.31,136.24,18.3498]
[1720759048967,7.3384,136.27,136.24,18.3498]
[1720759049134,7.3384,136.27,136.23,7.3403]
[1720759049553,7.3378,136.28,136.24,7.3397]
[1720759049754,7.3375,136.29,136.25,7.339]
[1720759050252,49.22,136.31,136.26,7.3388]
[1720759050253,7.3369,136.3,136.26,7.3388]
[1720759050667,7.3373,136.29,136.25,7.3392]
[1720759050976,20.0,136.31,136.26,19.81411034]
[1720759051150,47.5561,136.35,136.27,1.46746815]
[1720759051341,20.0,136.34,136.27,1.46746815]
[1720759051547,20.0,136.34,136.28,18.3442]
[1720759051849,7.3357,136.32,136.28,7.3376]
[1720759052358,16.5181,136.36,136.29,1.4672528]
[1720759052543,16.5181,136.36,136.29,18.3425]
[1720759052743,7.3351,136.33,136.29,25.6796]
[1720759052947,16.5181,136.36,136.29,18.3425]
[1720759052948,7.3358,136.32,136.29,18.3425]
[1720759053254,7.3353,136.33,136.29,27.14650182]
[1720759053764,7.3347,136.34,136.3,7.3366]
[1720759053941,7.3352,136.33,136.29,25.6797]
[1720759054143,7.336,136.32,136.28,7.3376]
[1720759054750,7.336,136.32,136.29,1.46657962]
[1720759055378,7.3353,136.33,136.29,8.80377962]
[1720759056038,7.3356,136.32,136.28,25.6819]
[1720759056461,7.3362,136.31,136.27,7.3381]
[1720759056774,7.3359,136.32,136.27,25.6839]
[1720759057075,7.3358,136.32,136.28,7.3375]
[1720759057243,7.3353,136.33,136.29,7.3368]
[1720759057445,7.3358,136.32,136.28,7.3377]
[1720759058767,7.3363,136.31,136.27,25.684]
[1720759059268,45.7381,136.36,136.26,7.3388]
[1720759059453,7.3371,136.3,136.26,7.3388]
[1720759059652,7.3373,136.29,136.25,22.9443]
[1720759059859,7.3373,136.29,136.26,7.3389]
[1720759060050,6.4086,136.34,136.26,18.3469]
[1720759060386,7.3364,136.31,136.26,18.3469]
[1720759060669,7.3359,136.32,136.28,7.3377]
[1720759061449,7.3363,136.31,136.27,7.3381]
[1720759062153,7.3358,136.32,136.28,7.3377]
[1720759062777,7.3362,136.31,136.27,7.3381]
[1720759062975,18.3369,136.34,136.26,25.6856]
[1720759062976,7.3367,136.3,136.26,25.6856]
[1720759063176,7.3373,136.29,136.25,22.9446]
[1720759063472,7.3373,136.29,136.25,41.2931]
[1720759065463,7.3369,136.3,136.26,7.3387]
[1720759065985,7.3363,136.31,136.27,7.338]
[1720759066571,7.3368,136.3,136.26,7.3386]
[1720759068071,7.3368,136.3,136.27,7.3383]
[1720759068276,7.3364,136.31,136.27,7.3383]
[1720759068677,7.3384,136.27,136.23,7.34]
[1720759068881,36.6742,136.34,136.22,40.9419]
[1720759068882,7.339,136.26,136.22,40.9419]
[1720759069095,7.339,136.26,136.22,34.718]
[1720759069273,7.339,136.26,136.22,42.0587]
[1720759069469,7.339,136.26,136.22,25.6923]
[1720759069893,7.3395,136.25,136.22,18.3516]
[1720759070278,7.3395,136.25,136.21,7.3414]
[1720759072074,7.3395,136.25,136.21,25.6953]
[1720759072481,7.3396,136.25,136.21,7.3412]
[1720759072698,7.34,136.24,136.2,7.342]
[1720759073093,7.3396,136.25,136.21,7.3413]
[1720759073308,7.34,136.24,136.2,25.6969]
[1720759074213,7.3396,136.25,136.2,25.6969]
[1720759074375,7.34,136.24,136.2,25.6969]
[1720759075675,7.3396,136.25,136.21,7.3415]
[1720759076088,7.34,136.24,136.2,25.6969]
[1720759077787,18.3479,136.26,136.16,6.2882]
[1720759077981,15.796,136.24,136.16,6.2882]
[1720759078202,15.796,136.24,136.15,23.9276]
[1720759078203,7.343,136.19,136.15,23.9276]
[1720759078503,29.22,136.23,136.15,23.9276]
[1720759078504,7.3423,136.2,136.15,23.9276]
[1720759078889,29.22,136.21,136.13,13.9332]
[1720759079089,29.22,136.21,136.12,23.9292]
[1720759079090,7.3439,136.17,136.12,23.9292]
[1720759079690,63.3556,136.2,136.13,7.3458]
[1720759079691,7.3433,136.18,136.13,7.3458]
[1720759080016,7.3433,136.18,136.14,7.3453]
[1720759081604,7.3438,136.17,136.13,25.7103]
[1720759082219,29.22,136.21,136.13,18.3645]
[1720759082411,7.3431,136.19,136.14,7.3452]
[1720759082802,29.22,136.21,136.13,25.7103]
[1720759083404,7.3428,136.19,136.14,7.3452]
[1720759083601,7.3428,136.19,136.15,7.3447]
[1720759083793,7.3434,136.18,136.14,7.3453]
[1720759084113,7.3434,136.18,136.13,25.7102]
[1720759084912,7.3434,136.18,136.14,7.3452]
[1720759085215,29.22,136.21,136.13,18.3645]
[1720759085525,26.03153381,136.22,136.14,7.3451]
[1720759085526,7.343,136.19,136.14,7.3451]
[1720759085814,7.3433,136.18,136.14,7.3451]
[1720759086211,7.3422,136.2,136.15,7.3443]
[1720759086425,7.3422,136.2,136.16,7.3439]
[1720759086595,7.3418,136.21,136.17,7.3435]
[1720759087196,7.3427,136.19,136.15,24.5842]
[1720759087925,7.3417,136.21,136.17,7.3436]
[1720759088099,10.62427567,136.24,136.17,25.7024]
[1720759088299,10.62427567,136.24,136.18,7.3432]
[1720759088519,7.3414,136.22,136.18,8.81171572]
[1720759088729,20.0,136.23,136.19,7.3424]
[1720759088730,7.3406,136.23,136.19,7.3424]
[1720759090412,7.3412,136.22,136.18,23.97171572]
[1720759090940,7.3407,136.23,136.18,23.97171572]
[1720759091637,7.3402,136.24,136.19,25.699]
[1720759091805,7.3402,136.24,136.2,1.46814861]
[1720759092309,7.3396,136.25,136.21,1.46815389]
[1720759092908,7.3396,136.25,136.21,7.96775389]
[1720759093106,7.67311594,136.28,136.21,26.32115389]
[1720759093320,7.3385,136.27,136.23,7.3402]
[1720759093505,2.96082127,136.29,136.24,17.19748984]
[1720759093702,10.29862127,136.29,136.24,24.53728984]
[1720759093905,10.29862127,136.29,136.25,7.3393]
[1720759094119,10.29862127,136.29,136.24,24.53728984]
[1720759094321,7.3378,136.29,136.24,24.53728984]
[1720759094524,7.338,136.28,136.24,24.53728984]
[1720759095028,7.67425105,136.34,136.31,7.3362]
[1720759095327,7.3335,136.36,136.3,15.7298]
[1720759095532,7.3331,136.37,136.3,15.7298]
[1720759095713,7.3331,136.37,136.32,7.3354]
[1720759095919,7.3331,136.37,136.3,15.7298]
[1720759095920,7.3335,136.36,136.31,7.3361]
[1720759096114,7.3335,136.36,136.31,26.04963173]
[1720759096319,7.334,136.35,136.31,26.04963173]
[1720759097019,7.3337,136.36,136.31,26.04963173]
[1720759097333,7.333,136.37,136.31,18.71353173]
[1720759097514,7.333,136.37,136.32,6.4372]
[1720759097713,7.3335,136.36,136.32,13.7726]
[1720759098542,7.3344,136.35,136.3,23.0661]
[1720759098718,7.3336,136.36,136.3,34.071]
[1720759099036,29.22,136.4,136.3,15.7298]
[1720759099215,7.3326,136.38,136.34,7.3346]
[1720759099916,24.4726,136.41,136.32,25.6745]
[1720759100435,7.333,136.37,136.33,7.3351]
[1720759100735,7.3326,136.38,136.34,7.3345]
[1720759101031,7.3336,136.36,136.32,18.339]
[1720759101237,7.333,136.37,136.32,18.339]
[1720759101622,7.3336,136.36,136.32,25.6745]
[1720759102135,7.3342,136.35,136.31,7.336]
[1720759102310,29.22,136.38,136.3,15.7298]
[1720759102516,7.335,136.34,136.3,15.7298]
[1720759103520,7.335,136.34,136.3,23.0665]
[1720759103740,7.3336,136.36,136.31,7.336]
[1720759104034,7.3332,136.37,136.31,18.3404]
[1720759104419,7.3326,136.38,136.33,7.3347]
[1720759104619,7.3326,136.38,136.34,7.3343]
[1720759106142,47.5485,136.4,136.32,7.3353]
[1720759106435,7.3341,136.35,136.31,7.3359]
[1720759106846,20.0,136.39,136.3,15.7298]
[1720759107041,20.0,136.39,136.31,45.0]
[1720759107361,20.0,136.39,136.34,7.334]
[1720759107635,7.3327,136.38,136.34,25.6701]
[1720759108226,7.332,136.39,136.35,7.334]
[1720759110039,7.67413988,136.42,136.36,18.3335]
[1720759110245,7.3302,136.43,136.38,18.3308]
[1720759110544,7.3302,136.43,136.39,7.3315]
[1720759111260,7.3302,136.43,136.38,18.3308]
[1720759111261,7.3302,136.43,136.38,27.12925511]
[1720759111459,7.3293,136.44,136.4,18.3284]
[1720759111967,6.0705,136.48,136.38,1.46625511]
[1720759112145,7.329,136.45,136.39,18.3289]
[1720759112465,7.3283,136.46,136.41,25.6575]
[1720759112645,7.3296,136.44,136.39,7.3316]
[1720759112839,58.18809395,136.49,136.38,18.3302]
[1720759112840,29.22,136.45,136.38,18.3302]
[1720759113059,7.331,136.41,136.37,23.0455]
[1720759113240,7.331,136.41,136.37,15.7131]
[1720759113579,7.3316,136.4,136.35,24.9756]
[1720759113873,7.331,136.41,136.35,24.9756]
[1720759114237,7.331,136.41,136.37,7.3325]
[1720759114634,29.22,136.45,136.35,6.6416]
[1720759114881,29.22,136.45,136.39,7.3314]
[1720759114882,7.3301,136.43,136.39,7.3314]
[1720759115072,18.3234,136.44,136.35,6.6416]
[1720759115236,7.3314,136.4,136.36,7.333]
[1720759115441,7.3308,136.41,136.37,7.3328]
[1720759115767,7.3304,136.42,136.38,7.3324]
[1720759116069,7.3309,136.41,136.37,7.3328]
[1720759116246,7.3313,136.4,136.36,25.6659]
[1720759116769,7.3304,136.42,136.38,7.3323]
[1720759117742,7.3304,136.42,136.39,0.6733367]
[1720759118044,7.3304,136.42,136.38,8.79849342]
[1720759118243,63.1109,136.47,136.38,8.79849342]
[1720759118244,7.3299,136.43,136.39,7.3318]
[1720759118851,7.3299,136.43,136.39,8.79795257]
[1720759119049,7.3303,136.42,136.38,25.663]
[1720759119559,7.3299,136.43,136.39,7.3319]
[1720759119864,7.3294,136.44,136.4,8.79678234]
[1720759120547,7.3298,136.43,136.39,25.6602]
[1720759122380,7.66892252,136.49,136.41,18.3258]
[1720759122670,13.7661,136.51,136.47,7.3274]
[1720759122854,13.7661,136.51,136.4,22.5379]
[1720759122855,0.8457011,136.52,136.41,0.72405813]
[1720759123060,7.3265,136.49,136.45,7.3282]
[1720759125160,7.3265,136.49,136.45,8.05204588]
[1720759125365,0.8457011,136.52,136.46,19.06571431]
[1720759125568,20.8457011,136.52,136.46,19.06571431]
[1720759125772,28.1709011,136.52,136.48,7.3267]
[1720759126074,8.1709011,136.52,136.48,7.3267]
[1720759126253,8.1708011,136.52,136.48,7.3268]
[1720759126448,8.1708011,136.52,136.46,21.6267]
[1720759126449,7.3264,136.5,136.46,7.328]
[1720759126654,7.3264,136.5,136.45,25.6496]
[1720759126854,7.3264,136.5,136.46,7.328]
[1720759127867,7.3256,136.51,136.45,18.3212]
[1720759128065,7.3268,136.49,136.45,25.6498]
[1720759129573,7.3281,136.46,136.42,28.9568]
[1720759129781,7.328,136.47,136.43,7.3293]
[1720759130075,7.3272,136.48,136.44,7.3292]
[1720759131169,64.0649,136.5,136.42,18.3247]
[1720759131373,45.0,136.49,136.42,18.3247]
[1720759131550,7.3285,136.46,136.42,25.6546]
[1720759132164,45.0,136.49,136.42,18.3247]
[1720759132668,7.3273,136.48,136.44,25.6522]
[1720759133369,45.0,136.49,136.44,18.323]
[1720759133370,7.3276,136.47,136.44,18.323]
[1720759135158,7.3276,136.47,136.43,7.3295]
[1720759136154,7.3272,136.48,136.44,7.3291]
[1720759136965,7.3276,136.47,136.44,7.3291]
[1720759137680,7.3276,136.47,136.43,7.3295]
[1720759138760,7.3276,136.47,136.43,7.3296]
[1720759139473,7.3281,136.46,136.43,7.3296]
[1720759139780,7.3278,136.47,136.43,7.3296]
[1720759141277,24.19822056,136.5,136.44,7.3287]
[1720759141460,7.3274,136.48,136.44,7.3287]
[1720759142958,7.3274,136.48,136.39,15.609]
[1720759142959,7.3292,136.44,136.4,25.6582]
[1720759143877,7.3299,136.43,136.4,18.3273]
[1720759144083,7.3299,136.43,136.39,7.3317]
[1720759144376,7.3303,136.42,136.39,7.3317]
[1720759144583,7.3299,136.43,136.39,7.3319]
[1720759145284,18.3204,136.46,136.39,7.3319]
[1720759145285,7.3303,136.42,136.39,7.3319]
[1720759145583,16.1469,136.44,136.36,15.6204]
[1720759145771,7.3317,136.4,136.34,24.7975]
[1720759145957,7.331,136.41,136.36,7.333]
[1720759146157,7.331,136.41,136.36,25.6668]
[1720759147094,7.3314,136.4,136.36,25.6668]
[1720759147763,53.7633,136.43,136.36,25.6672]
[1720759147976,7.3312,136.41,136.36,25.6672]
[1720759148179,27.3303,136.42,136.36,18.3338]
[1720759148359,27.3303,136.42,136.38,7.3323]
[1720759148784,7.3309,136.41,136.37,7.3328]
[1720759148985,29.22,136.43,136.34,6.4624]
[1720759149204,7.3322,136.39,136.35,7.334]
[1720759150411,36.89364458,136.43,136.34,6.4624]
[1720759150708,45.0,136.42,136.34,6.4624]
[1720759151417,7.3311,136.41,136.37,7.3329]
[1720759151905,15.00354458,136.43,136.39,7.3318]
[1720759152104,7.3299,136.43,136.39,7.3318]
[1720759152591,7.3303,136.42,136.38,25.662]
[1720759153303,7.3314,136.4,136.36,7.3332]
[1720759153513,7.3322,136.39,136.35,25.6677]
[1720759153686,18.3257,136.42,136.35,18.3338]
[1720759154089,7.3321,136.39,136.35,25.6675]
[1720759154509,18.3257,136.42,136.35,18.3338]
[1720759154510,7.3324,136.38,136.35,18.3338]
[1720759154686,16.1469,136.44,136.35,18.3338]
[1720759154887,45.0,136.43,136.35,18.3338]
[1720759155092,7.3317,136.4,136.35,18.3338]
[1720759155330,45.0,136.43,136.37,18.3324]
[1720759155693,7.3306,136.42,136.38,7.3323]
[1720759156919,45.0,136.43,136.37,18.3324]
[1720759157118,7.3317,136.4,136.36,7.3334]
[1720759158728,7.3322,136.39,136.34,18.3352]
[1720759158922,47.5457,136.42,136.35,7.334]
[1720759159126,7.3324,136.38,136.34,25.6695]
[1720759159821,7.332,136.39,136.35,7.3339]
[1720759160017,7.3319,136.39,136.35,7.3338]
[1720759160603,36.5515,136.4,136.36,7.3334]
[1720759160806,7.3319,136.39,136.35,7.3338]
[1720759162034,36.5515,136.4,136.36,7.3334]
[1720759163119,7.332,136.39,136.35,7.3339]
[1720759163528,7.332,136.39,136.3,15.7474]
[1720759163529,94.22,136.38,136.3,15.7474]
[1720759163706,7.3349,136.34,136.3,7.3364]
[1720759163912,7.3349,136.34,136.3,18.3407]
[1720759164115,7.3349,136.34,136.3,25.6773]
[1720759164318,29.22,136.36,136.3,18.3407]
[1720759164814,36.5539,136.36,136.31,7.3358]
[1720759165020,29.22,136.36,136.3,25.6772]
[1720759165323,7.3349,136.34,136.3,25.6772]
[1720759166017,7.3343,136.35,136.31,7.3359]
[1720759167030,7.3346,136.34,136.3,25.6772]
[1720759168513,7.3347,136.34,136.3,25.6773]
[1720759169118,7.3353,136.33,136.29,7.3372]
[1720759169438,7.3356,136.33,136.29,7.3372]
[1720759170136,7.3347,136.34,136.3,7.3366]
[1720759170339,7.3342,136.35,136.31,7.336]
[1720759170531,36.5537,136.36,136.32,7.3356]
[1720759170835,7.3337,136.36,136.32,7.3356]
[1720759171037,7.3341,136.35,136.31,25.6763]
[1720759171337,7.3336,136.36,136.32,7.3355]
[1720759171519,94.22,136.38,136.31,18.3403]
[1720759171720,97.21019212,136.38,136.31,18.3403]
[1720759171920,94.22,136.38,136.31,18.3403]
[1720759172128,7.3335,136.36,136.32,7.3354]
[1720759172837,7.3346,136.34,136.31,18.3403]
[1720759173137,7.3346,136.34,136.3,7.3365]
[1720759173336,7.3342,136.35,136.31,7.3361]
[1720759173517,94.22,136.38,136.26,16.4063]
[1720759173518,74.22,136.38,136.26,16.4063]
[1720759173722,7.3333,136.37,136.33,7.3348]
[1720759173942,7.3333,136.37,136.27,65.0]
[1720759173943,7.3336,136.36,136.32,25.6743]
[1720759174444,7.3336,136.36,136.33,7.3351]
[1720759174625,7.3331,136.37,136.33,7.3351]
[1720759174818,7.3325,136.38,136.34,7.3344]
[1720759175920,7.332,136.39,136.35,7.3339]
[1720759177125,7.3333,136.37,136.32,16.1821]
[1720759177329,7.3333,136.37,136.33,7.3348]
[1720759177524,7.3335,136.36,136.33,18.3378]
[1720759178254,7.3331,136.37,136.33,25.6728]
[1720759178423,7.3326,136.38,136.34,7.3345]
[1720759179150,7.3335,136.36,136.33,18.3378]
[1720759179442,7.3335,136.36,136.32,23.5175]
[1720759179644,7.3343,136.35,136.32,16.1821]
[1720759180436,7.3336,136.36,136.32,23.5176]
[1720759180728,7.333,136.37,136.33,7.3349]
[1720759182154,7.3336,136.36,136.32,41.8554]
[1720759182729,18.3298,136.39,136.32,34.5199]
[1720759182939,7.3347,136.34,136.32,16.1821]
[1720759183231,7.3351,136.33,136.29,7.3371]
[1720759183435,7.3347,136.34,136.3,7.3366]
[1720759183652,7.3351,136.33,136.29,7.337]
[1720759184026,7.3348,136.34,136.3,7.3367]
[1720759186154,29.22,136.36,136.28,34.9488]
[1720759186155,18.3355,136.35,136.28,34.9488]
[1720759186377,7.3359,136.32,136.28,25.6822]
[1720759187087,7.3352,136.33,136.29,7.3372]
[1720759187278,36.89958355,136.36,136.3,25.6785]
[1720759187279,7.3347,136.34,136.3,25.6785]
[1720759187589,7.3343,136.35,136.31,7.3362]
[1720759187752,36.89958355,136.36,136.32,7.3356]
[1720759187951,7.3331,136.37,136.33,7.3348]
[1720759188459,7.3335,136.36,136.33,7.3348]
[1720759188889,7.3331,136.37,136.33,7.3348]
[1720759190315,7.3331,136.37,136.34,7.3345]
[1720759190499,7.3324,136.38,136.34,25.6709]
[1720759192210,7.3321,136.39,136.35,7.334]
[1720759192424,16.2999,136.4,136.34,25.6707]
[1720759192425,7.3325,136.38,136.34,25.6707]
[1720759194389,7.3329,136.37,136.34,18.3364]
[1720759195218,7.3336,136.36,136.32,6.3836]
[1720759195434,45.5199,136.4,136.3,15.0358]
[1720759195602,7.3349,136.34,136.31,18.3392]
[1720759195811,7.3349,136.34,136.31,25.6753]
[1720759196304,47.5512,136.38,136.31,25.6753]
[1720759196501,7.3346,136.34,136.3,22.3723]
[1720759196721,18.334,136.36,136.28,24.727]
[1720759197031,7.3349,136.34,136.3,7.3364]
[1720759197597,29.22,136.38,136.32,7.3355]
[1720759197909,7.3346,136.34,136.3,7.3365]
[1720759198218,7.3353,136.33,136.29,7.3372]
[1720759199328,29.22,136.36,136.29,7.3372]
[1720759199329,7.3357,136.32,136.29,7.3372]
[1720759199627,7.3353,136.33,136.29,7.3372]
[1720759199994,7.3348,136.34,136.3,7.3364]
[1720759200420,29.22,136.36,136.31,7.3358]
[1720759200624,29.22,136.36,136.32,7.3354]
[1720759200625,7.3339,136.36,136.32,7.3354]
[1720759201303,7.3339,136.36,136.33,7.335]
[1720759201511,7.3339,136.36,136.32,7.3354]
[1720759202030,7.3341,136.35,136.31,25.6752]
[1720759202202,7.3336,136.36,136.32,7.3355]
[1720759202403,7.3332,136.37,136.33,25.6729]
[1720759202600,7.3326,136.38,136.34,7.3345]
[1720759204334,7.3335,136.36,136.33,18.3378]
[1720759204707,26.00866018,136.39,136.31,6.3931]
[1720759204905,7.3338,136.36,136.32,7.3353]
[1720759205541,7.334,136.35,136.31,32.0682]
[1720759206050,7.3337,136.36,136.32,7.3356]
[1720759206425,7.3337,136.36,136.31,24.7323]
[1720759206426,7.67856018,136.39,136.31,6.3931]
[1720759206643,21.17297097,136.38,136.31,6.3931]
[1720759206948,21.17297097,136.37,136.34,7.3344]
[1720759207247,7.3327,136.38,136.34,7.3344]
[1720759207451,21.17282145,136.37,136.34,8.80021697]
[1720759207632,7.3327,136.38,136.34,8.80021697]
[1720759207833,18.3287,136.4,136.33,16.1778]
[1720759208048,21.17262644,136.39,136.33,16.1778]
[1720759208222,7.3331,136.37,136.33,24.97839811]
[1720759208541,18.3287,136.4,136.33,16.1778]
[1720759208747,7.3328,136.38,136.34,7.3342]
[1720759210544,21.17262644,136.37,136.34,7.3342]
[1720759210853,7.3328,136.38,136.34,7.3342]